Cogmind - Beta 17 @@@ ROGUE MODE // 2026.07.25 @ 17:29:01 Player: 50l Result: Destroyed by Tracker with Linked Autogun Performance ------------- Evolutions (7) 3500 Regions Visited (19) 3800 Robots Destroyed (233) 1165 Value Destroyed (8387) 8387 Prototype IDs (82) 1640 Alien Tech Used (4) 800 Bonus (5513) 5513 TOTAL SCORE: 24805 Bonus ------- High Alert Combat Kills 12 Follower Combat Kills 601 Entered DSFs 500 Aligned with FarCom 300 Acquired ECA 300 Met Zhirov 300 Found Hidden Lab 3000 Pursued by Intercept 500 Cogmind --------- Core Integrity 0/1300 Matter 250/300 Energy 98/100 System Corruption 14% Temperature Cool (0) Movement Core (300) Ox5 Location -3/Research Parts ------- > --- POWER (1) -------- (None) > --- PROPULSION (6) --- Improved Linear Gravjet Improved Linear Gravjet > --- UTILITY (10) ----- Advanced Heat Sink Advanced Coolant Injector Enhanced Optical Array Advanced Target Analyzer Advanced Target Analyzer Advanced Target Analyzer Improved Armor Integrity Analyzer Experimental System Shield > --- WEAPON (4) ------- Vibroblade Vibroblade Vibroblade Vibroblade > --- INVENTORY (5) ---- Light Quantum Reactor Experimental Matter Compressor (0) Advanced EM Shield Mini Drone Bay (1/3) Peak State ------------ > --- POWER ------------ Particle Reactor > --- PROPULSION ------- Improved Linear Gravjet Improved Linear Gravjet Improved Linear Gravjet Improved Linear Gravjet Improved Linear Gravjet Improved Linear Gravjet > --- UTILITY ---------- Experimental Power Amplifier Advanced Heat Sink Advanced Coolant Injector Enhanced Optical Array Advanced Target Analyzer Advanced Target Analyzer Advanced Target Analyzer Improved Armor Integrity Analyzer Experimental Shock Absorption System Experimental System Shield > --- WEAPON ----------- Vibroblade Vibroblade Vibroblade Vibroblade > --- INVENTORY -------- Light Quantum Reactor Improved Linear Gravjet Q-thruster Advanced EM Shield Mini Drone Bay [Rating: 157] Favorites ----------- Power Improved Deuterium Engine Engine Improved Deuterium Engine Power Core Nuclear Core Reactor Heavy Antimatter Reactor Propulsion Armored Treads Treads Armored Treads Wheel Centrium Wheel Hover Unit Improved Antigrav System Flight Unit Nuclear Pulse Array Utility Huge Storage Unit Device Improved Heat Sink Storage Huge Storage Unit Processor Core Analyzer Hackware Improved Hacking Suite Protection Hardened Medium Armor Plating Weapon Thermic Laser Energy Gun Thermic Laser Energy Cannon Warp Cannon Ballistic Gun Heavy Battle Rifle Ballistic Cannon Heavy Gauss Cannon Launcher Missile Launcher Special Weapon Improved Plasma Cutter Slashing Weapon Ionic Axe Special Melee Weapon Improved Datajack Build | -11 -10 -10 -10 -9 -8 -8 -8 -8 -6 -6 -5 -5 -5 -5 -4 -4 -4 -4 -3 ------- Run | Yrd Mat Min Exi Min Mat Sto Rec Scr Fac DSF Fac Upp Upp Zhi Pro Fac Arm Lab Res Slots Evolved 14 | . . . . . 4 . . . 4 . 2 . . . . 2 . . 2 Power . | . . . . . . . . . . . . . . . . . . . . Propulsion 4 | . . . . . 1 . . . 1 . . . . . . 2 . . . Utility 8 | . . . . . 2 . . . 2 . 2 . . . . . . . 2 Weapon 2 | . . . . . 1 . . . 1 . . . . . . . . . . Parts Attached 196 | 7 5 2 1 . 23 12 . 1 4 6 23 2 9 4 12 17 9 9 50 Power 11 | 1 . 1 . . 3 . . . . . 1 . . 1 . . 1 . 3 Engine 4 | 1 . 1 . . 1 . . . . . 1 . . . . . . . . Core 2 | . . . . . 2 . . . . . . . . . . . . . . Reactor 5 | . . . . . . . . . . . . . . 1 . . 1 . 3 Propulsion 48 | 2 1 1 . . 4 6 . 1 . 1 3 1 3 . 1 4 . 2 18 Treads 24 | 2 1 1 . . 4 6 . 1 . 1 3 1 2 . . . . 1 1 Leg . | . . . . . . . . . . . . . . . . . . . . Wheel 2 | . . . . . . . . . . . . . 1 . . . . 1 . Hover 17 | . . . . . . . . . . . . . . . . . . . 17 Flight 5 | . . . . . . . . . . . . . . . 1 4 . . . Utility 80 | 2 1 . . . 7 2 . . 2 3 13 1 3 2 9 10 4 3 18 Device 40 | 1 . . . . 3 . . . 1 2 6 . 1 1 5 7 2 2 9 Storage 6 | 1 1 . . . 1 1 . . . . . . . . . 1 . . 1 Processor 17 | . . . . . . . . . 1 1 4 . . . 3 . 2 . 6 Hackware 4 | . . . . . . . . . . . . . . . 1 1 . . 2 Protection 13 | . . . . . 3 1 . . . . 3 1 2 1 . 1 . 1 . Artifact . | . . . . . . . . . . . . . . . . . . . . Weapon 57 | 2 3 . 1 . 9 4 . . 2 2 6 . 3 1 2 3 4 4 11 Energy Gun 23 | 1 3 . . . 7 2 . . 2 2 2 . 1 . . . . . 3 Energy Cannon 7 | . . . . . 1 . . . . . 1 . . . 1 . . 1 3 Ballistic Gun 8 | 1 . . . . 1 . . . . . 1 . 2 1 . . 2 . . Ballistic Cannon 7 | . . . . . . . . . . . . . . . 1 . 2 3 1 Launcher 1 | . . . . . . . . . . . 1 . . . . . . . . Special Weapon 1 | . . . . . . . . . . . 1 . . . . . . . . Impact Weapon . | . . . . . . . . . . . . . . . . . . . . Slashing Weapon 6 | . . . . . . . . . . . . . . . . 2 . . 4 Piercing Weapon . | . . . . . . . . . . . . . . . . . . . . Special Melee Weapon 4 | . . . 1 . . 2 . . . . . . . . . 1 . . . Unidentified Prototypes 27 | . 1 . . . 3 1 . . . . 1 . . 4 . 3 4 4 6 Parts Lost 66 | . . 2 . . 8 . . . . 2 10 5 3 . 12 . 1 . 23 Power 6 | . . 1 . . 2 . . . . . 1 . . . . . . . 2 Propulsion 22 | . . 1 . . 2 . . . . . 4 2 1 . 4 . . . 8 Utility 22 | . . . . . 2 . . . . 2 2 1 1 . 4 . 1 . 9 Weapon 16 | . . . . . 2 . . . . . 3 2 1 . 4 . . . 4 Highest Loss Streak 10 | . . 2 . . 3 . . . . 1 2 3 1 . 8 . 1 . 10 To Critical Strikes . | . . . . . . . . . . . . . . . . . . . . Average Backups 18 | 2 12 14 14 14 15 23 25 24 23 22 23 22 24 24 20 7 11 12 11 Power 1 | . 1 . . . . 2 2 2 2 1 . 2 2 2 2 . . 1 1 Propulsion 2 | 1 4 4 3 3 2 5 6 5 4 3 2 1 . 1 . . 1 1 . Utility 10 | . 2 3 4 6 6 10 12 12 13 14 16 15 14 13 11 4 5 4 6 Weapon 3 | . 3 5 6 4 4 3 4 3 3 2 1 3 5 6 4 1 2 4 2 Tool/Special . | . . . . . . . . . . . . . . . . . . . . Unused Backups 50 | . 3 1 . 2 4 3 . 1 . 4 4 . 1 . 11 2 7 1 6 Power 8 | . . . . . . 1 . . . 2 . . . . 3 . . . 2 Propulsion 9 | . 1 . . . 1 1 . 1 . 2 . . . . . . 2 . 1 Utility 16 | . . . . 1 . 1 . . . . 4 . 1 . 4 1 1 1 2 Weapon 16 | . 2 1 . 1 3 . . . . . . . . . 4 1 4 . . Tool/Special 1 | . . . . . . . . . . . . . . . . . . . 1 Average Slot Usage (%) 88 | . 99 100 100 100 94 99 100 100 93 98 90 81 88 73 78 68 69 68 75 Engine 3 | . 14 14 14 14 2 . . . . . 4 5 5 2 . . . . . Core 2 | . . . . . 5 9 9 9 6 6 . . . . . . . . . Reactor 1 | . . . . . . . . . . . . . . 2 4 4 5 5 3 Treads 17 | . 28 28 28 28 25 27 27 27 26 26 20 11 16 17 9 . . 2 6 Flight 1 | . . . . . . . . . . . . . . . . 14 15 11 1 Device 15 | . 13 14 14 14 16 18 18 18 19 14 11 16 17 16 16 18 17 15 9 Storage 6 | . 14 14 14 14 9 9 9 9 6 6 5 5 5 5 4 1 5 5 3 Processor 8 | . . . . . . . . . 5 10 17 11 11 11 16 7 11 14 16 Hackware 1 | . . . . . . . . . . . . . . . . 9 3 . 6 Protection 5 | . . . . . 7 9 9 9 6 5 4 5 6 11 3 3 3 2 3 Energy Gun 15 | . 20 28 16 28 25 26 27 25 16 25 19 11 12 . 8 . . . . Ballistic Gun 1 | . 7 . . . 1 . . . . . 1 . 9 . 5 . . . . Special Melee Weapon 1 | . . . 11 . . . . 1 4 . . 4 . 1 1 3 1 . . Peak Build Rating 157 | 7 11 11 11 12 33 38 38 40 54 58 84 83 84 91 91 116 114 132 157 Average Rating 64 | 4 9 10 10 11 23 36 38 39 49 54 72 79 80 69 70 103 107 106 129 On Entrance 52 | . 7 11 11 11 12 33 38 38 39 54 58 84 81 78 91 57 109 98 132 Avg Prop Armor Cover (%) 5 | . . . . . . . . . . . . . 1 . 13 6 10 7 2 Naked Turns . | . . . . . . . . . . . . . . . . . . . . Heaviest Build 134 | 12 30 32 32 32 60 105 105 105 109 111 134 130 131 122 127 51 54 90 96 Greatest Support 126 | 40 40 40 40 40 60 66 66 66 83 88 126 126 121 113 113 54 54 79 114 Greatest Overweight (x) 32 | . . . . . 1 1 1 1 1 1 1 1 1 1 32 2 4 3 5 Average Overweight (x) . | . . . . . . . 1 1 1 1 . 1 1 . 3 . . . . Largest Inventory Capacity 25 | 8 15 15 15 15 20 25 25 25 25 25 25 25 25 25 25 15 15 15 15 Average Capacity 20 | 6 14 15 15 15 17 23 25 25 25 25 25 25 25 25 21 9 15 15 12 Most Carried 25 | 5 15 15 15 15 20 25 25 25 25 25 25 25 25 25 25 14 15 15 15 Average Carried 19 | 3 12 14 14 14 16 23 25 24 24 24 24 22 24 24 20 7 14 14 12 Final Capacity 25 | 8 15 15 15 15 20 25 25 25 25 25 25 25 25 25 5 15 15 15 5 Final Carried 25 | 5 15 15 15 15 20 25 25 25 24 25 25 25 23 25 5 13 14 15 4 Class Distribution -------------------- 21% | Scavenger-Tank 19% | Mutant 13% | Skirmisher 9% | Scavenger-Gunner 9% | Hacker-Mutant 8% | Tank 7% | Scavenger-Skirmisher 3% | Scavenger-Mutant 3% | Hacker-Gunner Dominant Class ---------------- Mutant | -10/Materials Mutant | -10/Mines Mutant | -10/Exiles Mutant | -9/Mines Scavenger-Skirmisher | -8/Materials Skirmisher | -8/Storage Skirmisher | -8/Recycling Tank | -8/Scraptown Mutant | -6/Factory Skirmisher | -6/DSF Scavenger-Gunner | -5/Factory Scavenger-Tank | -5/Upper Caves Scavenger-Tank | -5/Upper Caves Scavenger-Mutant | -5/Zhirov Scavenger-Gunner | -4/Proximity Caves Hacker-Mutant | -4/Factory Mutant | -4/Armory Mutant | -4/Lab Hacker-Gunner | -3/Research Resources | -11 -10 -10 -10 -9 -8 -8 -8 -8 -6 -6 -5 -5 -5 -5 -4 -4 -4 -4 -3 ----------- Run | Yrd Mat Min Exi Min Mat Sto Rec Scr Fac DSF Fac Upp Upp Zhi Pro Fac Arm Lab Res Matter Collected 4760 | 265 176 30 10 . 374 261 43 15 . 142 608 235 414 . 452 153 186 80 1316 Remotely . | . . . . . . . . . . . . . . . . . . . . Salvage Created 10418 | 14 462 216 . . 861 1273 114 . . 953 3009 515 1010 . 285 223 230 90 1163 Parts 414 | 4 23 24 . . 40 70 6 . . 41 88 9 22 . 5 13 9 6 54 Haulers Intercepted 11 | . 1 . . . 3 3 . . . 1 2 . . . . 1 . . . Recyclers Shooed 14 | . . . . . 3 2 . . . . 9 . . . . . . . . Parts Field Recycled . | . . . . . . . . . . . . . . . . . . . . Retrieved Matter . | . . . . . . . . . . . . . . . . . . . . Parts Self-Destructed 35 | . . . . . . . . . . . . 14 14 . 7 . . . . Prevented . | . . . . . . . . . . . . . . . . . . . . Parts Restored . | . . . . . . . . . . . . . . . . . . . . Kills | -11 -10 -10 -10 -9 -8 -8 -8 -8 -6 -6 -5 -5 -5 -5 -4 -4 -4 -4 -3 ------- Run | Yrd Mat Min Exi Min Mat Sto Rec Scr Fac DSF Fac Upp Upp Zhi Pro Fac Arm Lab Res Combat Hostiles Destroyed 170 | . 11 15 . . 22 19 2 . . 13 38 8 13 . 6 1 4 1 17 Melee 9 | . . . . . . . . . . . . . . . . 1 4 1 3 Guns 123 | . 10 15 . . 22 17 2 . . 12 23 5 11 . 5 . . . 1 Cannons 13 | . . . . . . . . . . . . . . . . . . . 13 AOE 6 | . 1 . . . . . . . . . 5 . . . . . . . . Classes Destroyed 21 | 1 4 . . . 3 3 . . . 3 2 2 1 . 1 . 1 . . Worker 18 | . . . . . 2 3 . . . . 11 . . . . 1 . . 1 Builder 5 | . . . . . . . . . . . 1 . . . . . . . 4 Tunneler 2 | 1 . 1 . . . . . . . . . . . . . . . . . Hauler 11 | . 1 . . . 3 3 . . . 1 2 . . . . 1 . . . Recycler 10 | . . . . . . 2 . . . . 7 . . . . . . . 1 Carrier 1 | . . . . . . . . . . 1 . . . . . . . . . Operator 2 | . . . . . 1 1 . . . . . . . . . . . . . Drone 2 | . . . . . . . . . . . . . . . 2 . . . . Watcher 14 | . 3 . . . 2 2 . . . . 2 . . . . 2 1 . 2 Swarmer 50 | . 4 13 . . 3 4 . . . 4 15 1 4 . . 1 1 . . Grunt 59 | . 7 2 . . 16 3 . . . 4 12 2 6 . 3 . . . 4 Brawler 1 | . . . . . . . . . . . . 1 . . . . . . . Duelist 5 | . . . . . . . . . . . . 3 . . . . . . 2 Protector 1 | . . . . . . 1 . . . . . . . . . . . . . Sentry 17 | . . . . . 3 10 2 . . . . 1 1 . . . . . . Demolisher 1 | . . . . . . . . . . . . . . . . . 1 . . Specialist 5 | . . . . . . . . . . 4 . . . . . . 1 . . Hunter 5 | . . . . . . 1 . . . . 3 . 1 . . . . . . Programmer 18 | . . . . . . . . . . . 8 . . . . . 1 . 9 Heavy 1 | . . . . . . . . . . 1 . . . . . . . . . Behemoth 3 | . . . . . . . . . . . . . 1 . 1 . . . 1 Tracker 1 | . . . . . . . . . . . . . . . . . . . 1 Best Kill Streak 9 | 1 4 4 . . 4 7 1 . . 4 7 6 5 . 3 2 2 1 9 Combat Bots Only 8 | . 3 4 . . 4 5 1 . . 4 5 6 5 . 3 1 1 1 8 Max Kills in Single Turn 3 | 1 1 2 . . 2 2 1 . . 1 3 1 2 . 1 1 1 1 2 Gunslinging 1 | . . 1 . . . . . . . . 1 . 1 . . . . . . Exploded 2 | . 1 . . . . . . . . . 2 . . . . . . . . Melee 1 | . . . . . . . . . . . . . . . . 1 1 1 1 Uniques/NPCs Destroyed 1 | . . . . . . . . . . . . . . . . . . 1 . A5 (-4/Lab) Combat | -11 -10 -10 -10 -9 -8 -8 -8 -8 -6 -6 -5 -5 -5 -5 -4 -4 -4 -4 -3 -------- Run | Yrd Mat Min Exi Min Mat Sto Rec Scr Fac DSF Fac Upp Upp Zhi Pro Fac Arm Lab Res Hostile Shots Fired 1090 | . 36 45 . . 84 55 2 . . 58 161 83 64 . 77 41 22 27 335 Missed 309 | . 9 10 . . 11 19 1 . . 17 44 23 21 . 22 32 15 10 75 Hits 781 | . 27 35 . . 73 36 1 . . 41 117 60 43 . 55 9 7 17 260 Melee 23 | . . . . . . . . . . . . 10 . . . . . . 13 Projectile 758 | . 27 35 . . 73 36 1 . . 41 117 50 43 . 55 9 7 17 247 AOE 4 | . . . . . 2 . . . . . 1 . . . . . 1 . . Critical Strikes 33 | . . . . . 1 1 . . . 2 6 4 1 . 3 . . 1 14 Part Disruptions 1 | . . . . . . . . . . . . . . . . . . . 1 Damage Taken 15731 | . 425 334 . . 1458 463 18 . . 844 2534 1432 689 . 1404 171 247 446 5266 Core 2412 | . 69 73 . . 238 40 . . . 46 177 139 39 . 207 43 64 28 1249 Absorbed by Shields . | . . . . . . . . . . . . . . . . . . . . Redirected to Shielding 154 | . . . . . . . . . . . . . . . . . . . 154 Ignored by Resistances 34 | . . . . . . . . . . . . . 10 . . . . . 24 Regen/Repaired (Parts) 152 | . 152 . . . . . . . . . . . . . . . . . . Core Remaining (%) 71 | 100 . . . 43 . . . 49 . 94 . . . . 43 . . 100 . Volleys Fired 526 | 2 38 22 . . 72 61 3 . . 28 104 20 54 . 31 5 . . 86 Largest 4 | 2 2 2 . . 3 3 3 . . 4 4 4 4 . 4 1 . . 4 Hottest 316 | 60 130 130 . . 195 187 171 . . 292 316 300 284 . 250 105 . . 204 Shots Fired 1340 | 4 76 44 . . 179 169 11 . . 112 338 52 125 . 96 5 . 1 128 Gun 1196 | 4 76 44 . . 179 169 11 . . 112 331 52 125 . 88 . . . 5 Cannon 137 | . . . . . . . . . . . . . . . 8 5 . 1 123 Launcher 4 | . . . . . . . . . . . 4 . . . . . . . . Special 3 | . . . . . . . . . . . 3 . . . . . . . . Kinetic 251 | 2 35 . . . 25 . . . . . 5 . 57 . 43 . . 1 83 Thermal 1067 | 2 41 44 . . 154 169 11 . . 112 329 52 68 . 53 5 . . 27 Explosive 4 | . . . . . . . . . . . 4 . . . . . . . . Electromagnetic 18 | . . . . . . . . . . . . . . . . . . . 18 Robot Hit Streak 45 | 2 7 7 . . 21 20 5 . . 15 29 11 45 . 11 . . . 29 Robot Miss Streak 13 | 1 3 7 . . 6 4 2 . . 5 4 2 3 . 13 . . . 5 Penetration Max 1 | . . . . . . . . . . . . . . . . . . . 1 Secondary Targets 23 | . 1 3 . . 3 2 . . . 4 5 2 1 . 2 . . . . Max Gunslinging Chain 2 | . 1 1 . . 1 1 . . . 1 2 1 1 . 1 . . . . Capacitor 25 | . . . . . . . . . . . . . . . . . . . 25 Shots Hit Robots 975 | 2 47 43 3 . 134 113 6 2 . 73 225 43 102 3 47 7 23 12 90 Core Hits 557 | 1 31 46 . . 174 42 2 . . 30 103 15 37 . 16 4 5 4 47 Critical Kills . | . . . . . . . . . . . . . . . . . . . . Critical Parts Destroyed 1 | . . . . . . . . . . . . . 1 . . . . . . Critical Strikes 101 | . . . . . . 9 . . . 6 36 10 10 . 9 . 3 1 17 Burn 77 | . . . . . . 9 . . . 6 36 10 9 . 7 . . . . Destroy 1 | . . . . . . . . . . . . . 1 . . . . . . Blast 14 | . . . . . . . . . . . . . . . 2 . . . 12 Corrupt 2 | . . . . . . . . . . . . . . . . . . . 2 Sever 7 | . . . . . . . . . . . . . . . . . 3 1 3 Melee Attacks 125 | . . . 3 . . . . 2 . . . 4 . 3 . 26 29 20 38 Impact . | . . . . . . . . . . . . . . . . . . . . Slashing 99 | . . . . . . . . . . . . . . . . 25 16 20 38 Piercing . | . . . . . . . . . . . . . . . . . . . . Sneak Attacks 32 | . . . 3 . . . . 2 . . . 4 . 3 . 5 15 . . Combat Hostiles 2 | . . . . . . . . . . . . . . . . . 2 . . Follow-up Attacks 1 | . . . . . . . . . . . . . . . . . . . 1 Damage Inflicted 22554 | 27 601 476 . . 2331 2320 133 . . 1636 5152 771 2106 . 1199 605 670 761 3766 Guns 16142 | 27 601 476 . . 2331 2314 126 . . 1636 4674 771 2106 . 976 . . . 104 Cannons 3298 | . . . . . . . . . . . . . . . 223 . . . 3075 Explosions 425 | . . . . . . . . . . . 425 . . . . . . . . Melee 2613 | . . . . . . . . . . . . . . . . 605 670 761 577 Ramming 76 | . . . . . . 6 7 . . . 53 . . . . . . . 10 Kinetic 3952 | 15 245 . . . 286 . . . . . . . 1040 . 541 . . . 1825 Thermal 15206 | 12 356 476 . . 2045 2314 126 . . 1636 4674 771 1066 . 658 . . . 1072 Explosive 425 | . . . . . . . . . . . 425 . . . . . . . . Electromagnetic 282 | . . . . . . . . . . . . . . . . . . . 282 Impact . | . . . . . . . . . . . . . . . . . . . . Slashing 2613 | . . . . . . . . . . . . . . . . 605 670 761 577 Piercing . | . . . . . . . . . . . . . . . . . . . . Highest Corruption 14 | . . . . . 7 7 7 . . . 6 6 6 6 11 . . 7 14 Average Corruption 6 | . . . . . 6 7 7 . . . 4 6 6 6 7 . . 6 7 Corruption Purged 3 | . . . . . . . . . . . 3 . . . . . . . . Corruption Blocked . | . . . . . . . . . . . . . . . . . . . . Effects 316 | . . . . . 29 48 23 . . . 43 69 47 6 26 . . 5 20 Message Errors 73 | . . . . . 7 12 7 . . . 10 12 12 1 4 . . 1 7 Matter Fused 72 | . . . . . 5 15 5 . . . 7 20 9 2 6 . . . 3 Heat Flow Errors 42 | . . . . . 3 5 2 . . . 3 10 9 . 4 . . 2 4 Energy Discharges 41 | . . . . . 4 10 1 . . . 5 11 3 1 4 . . 1 1 Parts Rejected 5 | . . . . . 2 . . . . . 1 . 1 . . . . . 1 Parts Fused 2 | . . . . . . 1 1 . . . . . . . . . . . . Data Loss (minor) 36 | . . . . . 5 2 2 . . . 9 6 7 1 2 . . . 2 Data Loss (major) 18 | . . . . . 2 1 3 . . . 1 7 2 1 . . . . 1 Misfires 15 | . . . . . . 1 2 . . . 5 1 3 . 1 . . 1 1 Alerts 5 | . . . . . . . . . . . 1 2 . . 2 . . . . Weapon Failures 7 | . . . . . 1 1 . . . . 1 . 1 . 3 . . . . Overload Shots . | . . . . . . . . . . . . . . . . . . . . Overflow Damage 239 | . . . . . . . . . . . 8 . . . . 86 69 . 76 Projectiles 76 | . . . . . . . . . . . . . . . . . . . 76 Explosions 8 | . . . . . . . . . . . 8 . . . . . . . . Melee 155 | . . . . . . . . . . . . . . . . 86 69 . . Knockbacks 12 | . . . . . . . . . . . 1 . . . . . . . 11 Impact 1 | . . . . . . . . . . . 1 . . . . . . . . Kinetic 10 | . . . . . . . . . . . . . . . . . . . 10 Secondary 1 | . . . . . . . . . . . . . . . . . . . 1 Self-Inflicted Damage . | . . . . . . . . . . . . . . . . . . . . Shots . | . . . . . . . . . . . . . . . . . . . . Rammed 11 | . . . . . . 1 1 . . . 8 . . . . . . . 1 Targets Rammed 12 | . . . . . . 1 1 . . . 9 . . . . . . . 1 Kicked . | . . . . . . . . . . . . . . . . . . . . Crushed 1 | . . . . . . . . . . . 1 . . . . . . . . Highest Temperature 536 | . 138 345 . . 293 236 220 . . 447 525 378 536 . 271 19 . 145 233 Average Temperature 101 | . 37 115 . . 83 52 66 . . 143 138 140 95 . 90 10 . 80 55 Received Heat Transfer 2393 | . 114 54 . . 483 162 . . . 192 297 405 186 . 183 18 24 . 275 Effects 21 | . . 1 . . . 1 . . . 4 7 5 3 . . . . . . Shutdowns 6 | . . . . . . . . . . 1 3 1 1 . . . . . . Energy Bleed 3 | . . . . . . 1 . . . 2 . . . . . . . . . Interference 8 | . . . . . . . . . . . 3 3 2 . . . . . . Matter Decay 3 | . . . . . . . . . . 1 1 1 . . . . . . . Short Circuit 1 | . . 1 . . . . . . . . . . . . . . . . . Siege Activations . | . . . . . . . . . . . . . . . . . . . . Martial Activations . | . . . . . . . . . . . . . . . . . . . . Shielding Activations . | . . . . . . . . . . . . . . . . . . . . Robots Disrupted . | . . . . . . . . . . . . . . . . . . . . Combat Hostiles . | . . . . . . . . . . . . . . . . . . . . Robots Corrupted . | . . . . . . . . . . . . . . . . . . . . Combat Hostiles . | . . . . . . . . . . . . . . . . . . . . Parts Fried . | . . . . . . . . . . . . . . . . . . . . Impact Corruptions . | . . . . . . . . . . . . . . . . . . . . Robots Melted 23 | . . . . . . 2 . . . 2 13 3 2 . 1 . . . . Combat Hostiles 19 | . . . . . . 2 . . . 1 10 3 2 . 1 . . . . Parts Melted 95 | . . 1 . . 1 7 1 . . 9 51 12 5 . 5 . . . 3 Heat Transferred 36260 | 25 640 585 . . 2822 5016 222 . . 3580 14239 2996 3342 . 1831 . . . 962 Parts Sabotaged . | . . . . . . . . . . . . . . . . . . . . Parts Stolen . | . . . . . . . . . . . . . . . . . . . . Parts Stripped . | . . . . . . . . . . . . . . . . . . . . Power Chain Reactions . | . . . . . . . . . . . . . . . . . . . . Alert | -11 -10 -10 -10 -9 -8 -8 -8 -8 -6 -6 -5 -5 -5 -5 -4 -4 -4 -4 -3 ------- Run | Yrd Mat Min Exi Min Mat Sto Rec Scr Fac DSF Fac Upp Upp Zhi Pro Fac Arm Lab Res Maximum Alert Level 3 | . . . . . 1 1 . . . 1 2 . . . . 3 1 . . Low Security (%) 73 | 100 100 100 . 100 86 50 100 . 100 60 56 . . . . 20 98 . 100 Level 1 17 | . . . . . 13 49 . . . 39 35 . . . . 15 1 . . Level 2 5 | . . . . . . . . . . . 8 . . . . 31 . . . Level 3 3 | . . . . . . . . . . . . . . . . 31 . . . Level 4 . | . . . . . . . . . . . . . . . . . . . . Level 5 . | . . . . . . . . . . . . . . . . . . . . High Security . | . . . . . . . . . . . . . . . . . . . . Max Security . | . . . . . . . . . . . . . . . . . . . . Sterilizations 1 | . . . . . . . . . . 1 . . . . . . . . . Peak Influence 923 | 5 113 133 . . 279 340 131 . . 350 413 . . . . 923 242 . 183 Initial 923 | . . . . . . 105 126 . . . 183 . . . . 923 26 . . Average 155 | . 41 53 . . 89 181 47 . . 149 201 . . . . 495 69 . 77 Influence Increases 7188 | 5 340 385 . . 746 785 225 . . 370 1130 183 342 . 170 1238 657 . 612 Destroy 0b10 Robot/C 3660 | . 220 300 . . 480 440 40 . . 280 760 180 280 . 80 20 240 . 340 Destroy 0b10 Robot/NC 335 | 5 20 5 . . 45 60 . . . 10 115 . . . 10 20 5 . 40 Destroy Leader 716 | . 48 50 . . 120 150 . . . 50 116 . 30 . 20 6 62 . 64 Allied During Kill 110 | . . . . . 8 13 . . . . . 3 2 . . . 84 . . Successful Hack 267 | . 36 . . . 33 24 20 . . . 52 . . . . 40 12 . 50 Select Force Hacks 150 | . . . . . . . 150 . . . . . . . . . . . . Disable Machine 180 | . . . . . 15 60 15 . . . 60 . . . . . 30 . . Destroy Structure 165 | . 1 . . . . 8 . . . . 12 . . . . 42 14 . 88 Advance Influence 900 | . . . . . . . . . . . . . . . . 900 . . . Partial Spotted 120 | . . . . . . . . . . . . . . . . 60 30 . 30 Lose Combat Pursuer 585 | . 15 30 . . 45 30 . . . 30 15 . 30 . 60 150 180 . . Influence Decreases 7168 | 5 340 284 101 . 495 712 535 14 . 20 1173 490 342 . 132 1221 564 148 592 Entered New Map 933 | . . . 101 . . 146 198 14 . . 167 115 . . . 15 29 148 . Time Decay 4583 | 5 340 264 . . 409 526 337 . . . 716 325 312 . 102 546 359 . 342 Search Patrol Dispatched 500 | . . . . . . . . . . . . . . . . 500 . . . Lost Part 512 | . . 20 . . 42 . . . . 20 100 50 10 . 30 . 10 . 230 Lost Ally 340 | . . . . . 44 40 . . . . 40 . 20 . . 10 166 . 20 Purge Threat 300 | . . . . . . . . . . . 150 . . . . 150 . . . Squads Dispatched 41 | . 1 . . . 7 4 . . . 2 5 . . . . 6 7 . 9 Investigation 9 | . 1 . . . 3 1 . . . . . . . . . 1 2 . 1 Extermination 15 | . . . . . . . . . . . 4 . . . . 4 3 . 4 Reinforcement 13 | . . . . . 4 1 . . . 2 1 . . . . 1 2 . 2 Assault 2 | . . . . . . 2 . . . . . . . . . . . . . Garrison . | . . . . . . . . . . . . . . . . . . . . Intercept 2 | . . . . . . . . . . . . . . . . . . . 2 Searches Triggered 5 | . . . . . . . . . . . . . . . . 5 . . . Construction Impeded 1 | . . . . . . . . . . . . . . . . . . . 1 Haulers Reinforced 1 | . . . . . . . . . . . 1 . . . . . . . . Active Scanning Responses . | . . . . . . . . . . . . . . . . . . . . Cargo Convoy Interrupts 1 | . . . . . . . . . . . . . . . . . . . 1 Stealth | -11 -10 -10 -10 -9 -8 -8 -8 -8 -6 -6 -5 -5 -5 -5 -4 -4 -4 -4 -3 --------- Run | Yrd Mat Min Exi Min Mat Sto Rec Scr Fac DSF Fac Upp Upp Zhi Pro Fac Arm Lab Res Distress Signals 13 | . . . . . 4 2 . . . . 2 . . . . 2 3 . . Communications Jammed . | . . . . . . . . . . . . . . . . . . . . Distress Signals . | . . . . . . . . . . . . . . . . . . . . Times Spotted 314 | . 20 18 . . 40 26 1 . . 14 66 10 15 . 16 17 37 1 33 Peak Tracking Total 11 | . 6 3 . . 4 5 1 . . 4 6 9 6 . 4 6 11 1 6 Tactical Retreats 22 | . 1 2 . . 2 1 . . . 1 1 . 2 . 2 6 4 . . Traps | -11 -10 -10 -10 -9 -8 -8 -8 -8 -6 -6 -5 -5 -5 -5 -4 -4 -4 -4 -3 ------- Run | Yrd Mat Min Exi Min Mat Sto Rec Scr Fac DSF Fac Upp Upp Zhi Pro Fac Arm Lab Res Traps Triggered 12 | . 1 . . . 5 . . . . . 1 . . . . . . . 5 Indirectly . | . . . . . . . . . . . . . . . . . . . . Trap Hack Attempts 54 | . . . . . . 54 . . . . . . . . . . . . . Triggered . | . . . . . . . . . . . . . . . . . . . . Disarmed . | . . . . . . . . . . . . . . . . . . . . Reprogrammed 2 | . . . . . . 2 . . . . . . . . . . . . . Reused . | . . . . . . . . . . . . . . . . . . . . Traps Extracted . | . . . . . . . . . . . . . . . . . . . . Installed . | . . . . . . . . . . . . . . . . . . . . Triggered . | . . . . . . . . . . . . . . . . . . . . Machines | -11 -10 -10 -10 -9 -8 -8 -8 -8 -6 -6 -5 -5 -5 -5 -4 -4 -4 -4 -3 ---------- Run | Yrd Mat Min Exi Min Mat Sto Rec Scr Fac DSF Fac Upp Upp Zhi Pro Fac Arm Lab Res Machines Disabled 13 | . . . . . 1 4 1 . . . 4 . . . . . 2 1 . Max in Single Turn 1 | . . . . . 1 1 1 . . . 1 . . . . . . 1 . Garrison Access 1 | . . . . . . . . . . . . . . . . 1 . . . Machines Repaired . | . . . . . . . . . . . . . . . . . . . . Machines Dismantled . | . . . . . . . . . . . . . . . . . . . . Machines Sabotaged . | . . . . . . . . . . . . . . . . . . . . Overloaded Fab Kills . | . . . . . . . . . . . . . . . . . . . . Hacking | -11 -10 -10 -10 -9 -8 -8 -8 -8 -6 -6 -5 -5 -5 -5 -4 -4 -4 -4 -3 --------- Run | Yrd Mat Min Exi Min Mat Sto Rec Scr Fac DSF Fac Upp Upp Zhi Pro Fac Arm Lab Res Machines Accessed 76 | . 8 . 2 . 8 6 11 1 2 . 8 1 . 4 . 12 4 . 9 Terminals 53 | . 7 . . . 6 6 6 . 1 . 7 . . . . 8 4 . 8 Fabricators 2 | . . . . . . . . . 1 . . . . . . 1 . . . Repair Stations 2 | . 1 . . . . . . . . . . . . . . 1 . . . Recycling Units 5 | . . . . . . . 5 . . . . . . . . . . . . Scanalyzers 4 | . . . . . 2 . . . . . 1 . . . . 1 . . . Garrison Access 2 | . . . . . . . . . . . . . . . . 1 . . 1 Total Hacks 232 | . 34 . 2 . 29 19 23 1 3 . 23 1 . 17 . 32 12 . 36 Successful 128 | . 21 . 2 . 18 11 12 1 1 . 12 1 . 17 . 14 4 . 14 Failed 103 | . 13 . . . 10 8 11 . 2 . 11 . . . . 18 8 . 22 Catastrophic 16 | . 1 . . . 1 1 2 . 1 . . . . . . 5 . . 5 Database Lockouts 1 | . . . . . 1 . . . . . . . . . . . . . . Manual 140 | . 29 . 1 . 21 20 20 . . . 10 . . . . 16 3 1 19 Terminals 180 | . 30 . . . 22 19 16 . 1 . 20 . . . . 25 12 . 35 Fabricators 3 | . . . . . . . . . 2 . . . . . . 1 . . . Repair Stations 5 | . 4 . . . . . . . . . . . . . . 1 . . . Recycling Units 7 | . . . . . . . 7 . . . . . . . . . . . . Scanalyzers 14 | . . . . . 7 . . . . . 3 . . . . 4 . . . Garrison Access 2 | . . . . . . . . . . . . . . . . 1 . . 1 Terminal Hacks 56 | . 6 . 2 . 3 1 3 1 1 . 6 1 . 17 . 3 3 . 9 Record 9 | . . . 1 . . . . 1 . . . . . 5 . . . . 2 Part Schematic 6 | . . . . . . . . . . . 1 . . 4 . 1 . . . Robot Analysis 14 | . 4 . . . 1 . 3 . . . 1 . . 4 . . . . 1 Prototype ID Bank 4 | . . . . . . . . . . . . . . 4 . . . . . Open Door 1 | . . . . . . . . . . . . 1 . . . . . . . Open DSF 1 | . . . . . . . . . 1 . . . . . . . . . . Level Access Points 1 | . . . . . . 1 . . . . . . . . . . . . . Branch Access Points 3 | . . . . . 1 . . . . . 1 . . . . . . . 1 Emergency Access Points 2 | . . . . . . . . . . . . . . . . . 1 . 1 Terminal Index 2 | . 1 . . . . . . . . . . . . . . 1 . . . Fabricator Index 1 | . . . . . . . . . . . . . . . . . . . 1 Garrison Index 1 | . . . . . . . . . . . 1 . . . . . . . . Alert Level 3 | . . . . . 1 . . . . . 1 . . . . . . . 1 Unreport Threat 2 | . . . . . . . . . . . 1 . . . . 1 . . . Locate Traps 2 | . 1 . . . . . . . . . . . . . . . 1 . . Registered Components 1 | . . . . . . . . . . . . . . . . . . . 1 Registered Prototypes 1 | . . . . . . . . . . . . . . . . . . . 1 Zone Layout 1 | . . . . . . . . . . . . . . . . . 1 . . Proto ID Catalog 1 | . . . 1 . . . . . . . . . . . . . . . . Fabricator Hacks 1 | . . . . . . . . . . . . . . . . 1 . . . Network Status 1 | . . . . . . . . . . . . . . . . 1 . . . Repair Station Hacks 4 | . 4 . . . . . . . . . . . . . . . . . . Scan Component 2 | . 2 . . . . . . . . . . . . . . . . . . Repair 2 | . 2 . . . . . . . . . . . . . . . . . . Recycling Unit Hacks . | . . . . . . . . . . . . . . . . . . . . Scanalyzer 9 | . . . . . 5 . . . . . 1 . . . . 3 . . . Insert Component 2 | . . . . . 1 . . . . . . . . . . 1 . . . Analyze 1 | . . . . . 1 . . . . . . . . . . . . . . Retrieve Study 6 | . . . . . 3 . . . . . 1 . . . . 2 . . . Garrison Access Hacks 1 | . . . . . . . . . . . . . . . . 1 . . . Seal Access 1 | . . . . . . . . . . . . . . . . 1 . . . Unauthorized Hacks 57 | . 11 . . . 10 10 9 . . . 5 . . . . 6 1 . 5 Terminals 52 | . 11 . . . 10 10 4 . . . 5 . . . . 6 1 . 5 Assimilate 3 | . . . . . . . . . . . 2 . . . . 1 . . . Botnet 30 | . 5 . . . 5 5 4 . . . 2 . . . . 5 1 . 3 Operators 1 | . . . . . . . . . . . . . . . . . . . 1 Skim 18 | . 6 . . . 5 5 . . . . 1 . . . . . . . 1 Fabricators . | . . . . . . . . . . . . . . . . . . . . Repair Stations . | . . . . . . . . . . . . . . . . . . . . Recycling Units 5 | . . . . . . . 5 . . . . . . . . . . . . Tunnel 5 | . . . . . . . 5 . . . . . . . . . . . . Scanalyzers . | . . . . . . . . . . . . . . . . . . . . Garrison Access . | . . . . . . . . . . . . . . . . . . . . Data Cores Recovered 1 | . . . . . . 1 . . . . . . . . . . . . . Used . | . . . . . . . . . . . . . . . . . . . . Hacking Detections 58 | . 8 . . . 7 6 6 . 1 . 7 . . . . 10 4 . 9 Full Trace Events 7 | . . . . . 2 1 . . . . . . . . . 1 2 . 1 Feedback Events . | . . . . . . . . . . . . . . . . . . . . Feedback Blocked . | . . . . . . . . . . . . . . . . . . . . Robot Schematics Acquired . | . . . . . . . . . . . . . . . . . . . . Robots Built . | . . . . . . . . . . . . . . . . . . . . Authchips . | . . . . . . . . . . . . . . . . . . . . Time . | . . . . . . . . . . . . . . . . . . . . Total Robot Build Rating . | . . . . . . . . . . . . . . . . . . . . Part Schematics Acquired 6 | . . . . . . . . . . . 1 . . 4 . 1 . . . Parts Built . | . . . . . . . . . . . . . . . . . . . . Authchips . | . . . . . . . . . . . . . . . . . . . . Time . | . . . . . . . . . . . . . . . . . . . . Total Part Build Rating . | . . . . . . . . . . . . . . . . . . . . Part Studies Acquired 6 | . . . . . 3 . . . . . 1 . . . . 2 . . . Parts Repaired 2 | . 2 . . . . . . . . . . . . . . . . . . Time 52 | . 52 . . . . . . . . . . . . . . . . . . Parts Recycled . | . . . . . . . . . . . . . . . . . . . . Recycled Matter . | . . . . . . . . . . . . . . . . . . . . Retrieved Matter . | . . . . . . . . . . . . . . . . . . . . Retrieved Components . | . . . . . . . . . . . . . . . . . . . . Parts Scanalyzed 1 | . . . . . 1 . . . . . . . . . . . . . . Part Schematics Acquired . | . . . . . . . . . . . . . . . . . . . . Parts Damaged . | . . . . . . . . . . . . . . . . . . . . Bothacking | -11 -10 -10 -10 -9 -8 -8 -8 -8 -6 -6 -5 -5 -5 -5 -4 -4 -4 -4 -3 ------------ Run | Yrd Mat Min Exi Min Mat Sto Rec Scr Fac DSF Fac Upp Upp Zhi Pro Fac Arm Lab Res Used RIF Installer . | . . . . . . . . . . . . . . . . . . . . Robots Hacked 9 | . . . 3 . . . . 2 . . . . . 3 . 1 . . . Non-combat 3 | . . . 2 . . . . . . . . . . . . 1 . . . Combat 6 | . . . 1 . . . . 2 . . . . . 3 . . . . . Robot Hacks Applied 9 | . . . 3 . . . . 2 . . . . . 3 . 1 . . . parse_system 9 | . . . 3 . . . . 2 . . . . . 3 . 1 . . . Relay Couplers Released . | . . . . . . . . . . . . . . . . . . . . Fabnet Peak Effective % . | . . . . . . . . . . . . . . . . . . . . Robots Rewired 13 | . . . . . . . . . . . . 2 . . . . 11 . . Allies Hacked . | . . . . . . . . . . . . . . . . . . . . Hacks Repelled . | . . . . . . . . . . . . . . . . . . . . Allies | -11 -10 -10 -10 -9 -8 -8 -8 -8 -6 -6 -5 -5 -5 -5 -4 -4 -4 -4 -3 -------- Run | Yrd Mat Min Exi Min Mat Sto Rec Scr Fac DSF Fac Upp Upp Zhi Pro Fac Arm Lab Res Total Allies 21 | . . . . 3 . 2 . . . . 2 2 . . . 1 11 . . Largest Group 4 | . . . . 3 3 2 . . . . 1 2 1 . . 1 4 . . Highest-Rated Group 224 | . . . . 40 40 62 . . . . 26 78 49 . . 10 224 . . Highest-Rated Ally 56 | . . . . 16 16 31 . . . . 26 49 49 . . 10 56 . . Initial Warlord ECA Mod 9 | . . . . . . . . . . . 9 9 9 9 8 8 8 8 7 Total Orders 6 | . . . . . . . . . . . 2 . . . . . . . 4 EXPLORE 6 | . . . . . . . . . . . 2 . . . . . . . 4 Ally Attacks 119 | . . . . . 22 25 . . . . . 11 3 . . . 58 . . Total Damage 2779 | . . . . . 265 422 . . . . . 288 53 . . . 1751 . . Kills 17 | . . . . . 3 4 . . . . . 1 1 . . . 8 . . Allies Corrupted . | . . . . . . . . . . . . . . . . . . . . Allies Melted . | . . . . . . . . . . . . . . . . . . . . Intel | -11 -10 -10 -10 -9 -8 -8 -8 -8 -6 -6 -5 -5 -5 -5 -4 -4 -4 -4 -3 ------- Run | Yrd Mat Min Exi Min Mat Sto Rec Scr Fac DSF Fac Upp Upp Zhi Pro Fac Arm Lab Res Active Infowar (turns) 14344 | 7 1186 647 673 106 383 . . . 291 351 1063 2330 1649 166 832 1575 929 217 1939 Optics 5339 | . . . . . . . . . . . . . . . 679 1575 929 217 1939 Terrain 4398 | . . . . . . . . . . 48 638 2202 1344 166 . . . . . Traps 1355 | . . . . . . . . . 291 303 761 . . . . . . . . Seismic 7086 | 7 1186 647 673 106 383 . . . . . . 2328 1385 . 371 . . . . T.N.C. 455 | . . . . . . . . . . . . . . . 112 343 . . . ECM 13 | . . . . . . . . . . . . . . . . . . . 13 Robot Analysis Total 14 | . 4 . . . 1 . 3 . . . 1 . . 4 . . . . 1 Derelict Logs Recovered 8 | . . 2 . 1 . . . . . . . 1 3 . 1 . . . . Drone Launches 5 | . . . . . . . . . . . 2 . . . . . . . 3 Drone Recoveries 1 | . . . . . . . . . . . . . . . . . . . 1 Exploration | -11 -10 -10 -10 -9 -8 -8 -8 -8 -6 -6 -5 -5 -5 -5 -4 -4 -4 -4 -3 ------------- Run | Yrd Mat Min Exi Min Mat Sto Rec Scr Fac DSF Fac Upp Upp Zhi Pro Fac Arm Lab Res Turns Passed 22703 | 88 1212 647 673 106 1458 1476 1076 2137 312 351 3307 2330 1649 298 923 1575 929 217 1939 Spaces Moved 11689 | 46 475 328 415 66 646 487 437 865 124 81 1123 885 555 165 600 1900 1136 143 1212 Core 111 | 5 . . . . . . . . . . . . . . 36 . 2 . 68 Treads 7418 | 41 475 328 415 66 646 487 437 865 124 81 1123 885 555 165 63 . . 53 609 Legs . | . . . . . . . . . . . . . . . . . . . . Wheels 184 | . . . . . . . . . . . . . . . 163 . . 12 9 Hover 526 | . . . . . . . . . . . . . . . . . . . 526 Flight 3450 | . . . . . . . . . . . . . . . 338 1900 1134 78 . Fastest Speed 20 | 50 160 160 160 160 160 163 243 243 247 247 160 240 240 163 40 34 34 34 20 Average Speed 150 | 148 160 160 160 160 160 220 243 245 247 247 227 240 241 167 127 37 37 97 106 Slowest Speed 1650 | 160 160 160 160 160 200 243 243 246 247 247 247 240 243 243 1650 200 250 180 305 Overloaded Moves . | . . . . . . . . . . . . . . . . . . . . Propulsion Burnouts . | . . . . . . . . . . . . . . . . . . . . Robots Hopped 19 | . . . . . . . . . . . . . . . . 18 1 . . Potential Cave-ins 2 | . . . . . . . . . . . . . . . . 2 . . . Cave-ins Triggered 3 | . . . . . 1 . . . . . 1 . . . 1 . . . . Teleports 2 | . . . . . . . . . . . . . . . . . 1 . 1 Exploration Rate (%) 60 | 4 76 77 89 20 59 77 91 57 7 88 29 88 70 60 73 50 65 94 38 Regions Visited 19 Branch Regions 12 Pre-discovered Areas 13 | . . 1 1 . . 1 5 . . . . 1 . 3 1 . . . . Known Exits Taken 6 | . . . . 1 1 . . . 1 . 1 . . . 1 . . 1 . Unknown Exits Taken 12 | 1 1 1 1 . . 1 1 1 . . . 1 1 1 . 1 1 . . Scrap Searched 19 | . . 1 . . . . . 6 . . . 4 3 . 5 . . . . Spaces Dug 59 | . . . . . . . . . . . . . . . . 23 6 . 30 Terrain Destroyed 106 | . . . . . . . . . . . 2 1 . . 14 23 6 1 59 Melee 38 | . . . . . . . . . . . . . . . . 18 6 . 14 Projectile 66 | . . . . . . . . . . . . 1 . . 14 5 . 1 45 AOE 2 | . . . . . . . . . . . 2 . . . . . . . . Terrain Rammed . | . . . . . . . . . . . . . . . . . . . . Walls Destroyed . | . . . . . . . . . . . . . . . . . . . . Machines Disabled . | . . . . . . . . . . . . . . . . . . . . Actions | -11 -10 -10 -10 -9 -8 -8 -8 -8 -6 -6 -5 -5 -5 -5 -4 -4 -4 -4 -3 --------- Run | Yrd Mat Min Exi Min Mat Sto Rec Scr Fac DSF Fac Upp Upp Zhi Pro Fac Arm Lab Res Total 15675 | 59 852 406 423 68 929 760 444 878 129 164 1617 1047 772 190 703 2704 1626 192 1712 Wait 2642 | . 314 50 . . 152 123 4 . . 36 298 125 137 . 14 735 404 . 250 Move 11633 | 45 474 327 414 65 645 486 436 864 123 80 1122 884 554 164 599 1864 1133 142 1212 Hop 18 | . . . . . . . . . . . . . . . . 17 1 . . Pick Up 154 | 5 14 3 2 1 20 9 . 4 1 6 21 6 2 3 9 14 13 9 12 Fast Attach 119 | 7 3 . . . 9 2 . . 2 3 6 . 4 7 8 16 6 5 41 Attach 85 | . 1 2 . . 6 1 . . 2 1 17 4 4 2 7 6 5 8 19 Detach 23 | . . . . . 1 . . . . . 2 . 2 3 . 3 4 2 6 Swap 89 | . 2 1 2 . 11 11 . 2 1 2 24 4 10 . 4 . 2 . 13 Drop 183 | . 6 1 2 2 13 12 . 6 . 8 14 . 2 8 31 18 19 6 35 Fire 526 | 2 38 22 . . 72 61 3 . . 28 104 20 54 . 31 5 . . 86 Melee 124 | . . . 3 . . . . 2 . . . 4 . 3 . 26 29 20 37 Ram . | . . . . . . . . . . . . . . . . . . . . Kick . | . . . . . . . . . . . . . . . . . . . . Crush 12 | . . . . . . 1 1 . . . 9 . . . . . . . 1 Escape Stasis . | . . . . . . . . . . . . . . . . . . . . Rewire 13 | . . . . . . . . . . . . . 3 . . . 10 . . Trap 54 | . . . . . . 54 . . . . . . . . . . . . . Miscellaneous . | . . . . . . . . . . . . . . . . . . . . Route ------- -11/Scrapyard -10/Materials (discovered 5 exits: *Mat x3 / [*Min] / *Sub) -10/Mines (discovered 4 exits: *Mat x2 / *Exi / Sub) -10/Exiles -9/Mines (discovered 2 exits: *Mat x2) -8/Materials (discovered 3 exits: *Fac / *Sto x2) -8/Storage (discovered 2 exits: Fac / *Rec) -8/Recycling (discovered 2 exits: *Fac / *Scr) -8/Scraptown -6/Factory -6/DSF -5/Factory (discovered 3 exits: *Fac / *Upp x2) -5/Upper Caves -5/Upper Caves (discovered 2 exits: *Fac / *Zhi) -5/Zhirov -4/Proximity Caves -4/Factory (discovered 3 exits: Res / [*Upp] / *Arm) -4/Armory (discovered 2 exits: *Res / *Lab) -4/Lab -3/Research (discovered 2 exits: Tes x2) History --------- Turn | Location | Event 11 | -11/Scrapyard | Discovered new exit (range 16) 89 | -11/Scrapyard | Entered Materials 234 | -10/Materials | Discovered new exit (range 9) 316 | -10/Materials | Build established: Mutant 489 | -10/Materials | Discovered new exit (range 4) 608 | -10/Materials | Discovered new exit (range 11) 768 | -10/Materials | Discovered new exit (range 15) 814 | -10/Materials | Identified exit to Subcaves 829 | -10/Materials | Repaired Seismic Detector 857 | -10/Materials | Repaired Lgt. Treads 941 | -10/Materials | Loaded intel: 39 machine locations 1033 | -10/Materials | Learned 4 Subcaves zone layouts 1067 | -10/Materials | Learned 4 Subcaves zone layouts 1092 | -10/Materials | Learned 4 Subcaves zone layouts 1128 | -10/Materials | Learned Storage stockpile data 1229 | -10/Materials | Learned Storage trap positions 1296 | -10/Materials | Learned Storage emergency access door positions 1301 | -10/Materials | Entered Mines 1302 | -10/Mines | Identified exit to Materials 1536 | -10/Mines | Core integrity fell below 50% 1553 | -10/Mines | Learned location of Zion (-6) 1861 | -10/Mines | Received a Rocket Launcher from a helpful Derelict 1941 | -10/Mines | Deemed a non-threat by the Exiles lab entrance 1941 | -10/Mines | Discovered new exit (range 5) 1948 | -10/Mines | Entered Exiles 1988 | -10/Exiles | Met 8R-AWN 2027 | -10/Exiles | Met EX-HEX 2091 | -10/Exiles | Met EX-DEC 2147 | -10/Exiles | Visited The Gauntlet 2364 | -10/Exiles | Met EX-BIN 2388 | -10/Exiles | Aligned with FarCom system 2390 | -10/Exiles | Given EX-Vault access code 2426 | -10/Exiles | Opened EX-Vault 2438 | -10/Exiles | Found Modified TNC 2468 | -10/Exiles | Warned to stay clear of 0b10 Research branches 2602 | -10/Exiles | Discovered new exit (range 14) 2621 | -10/Exiles | Left Exiles lab with Modified TNC 2621 | -10/Exiles | Entered Mines 2622 | -9/Mines | Identified exit to Materials 2627 | -9/Mines | Assembled infested the area 2669 | -9/Mines | Learned Materials non-interactive machine intel 2682 | -9/Mines | Found a Scrap Suit stashed away for nefarious purposes 2687 | -9/Mines | Found Scrap Suit 2715 | -9/Mines | Discovered exit to Materials (range 6) 2719 | -9/Mines | Assisted by bots powering up and referring to "LRC-V3" 2727 | -9/Mines | Entered Materials 2727 | -8/Materials | Accompanied by 3 allies 2727 | -8/Materials | Evolved 4 slots: Propulsion x1, Utility x2, Weapon x1 2728 | -8/Materials | Identified exit to Storage 2729 | -8/Materials | Loaded intel: 37 non-interactive machine locations 2800 | -8/Materials | Discovered exit to Storage (range 16) 2887 | -8/Materials | Lost 3 allies 3042 | -8/Materials | Build established: Skirmisher 3102 | -8/Materials | Crushed by falling debris 3312 | -8/Materials | Lost 3 parts (2n1u) 3390 | -8/Materials | Discovered new exit (range 16) 3631 | -8/Materials | Build established: Scavenger-Skirmisher 4103 | -8/Materials | Central database locked down 4185 | -8/Materials | Entered Storage 4186 | -8/Storage | Loaded intel: 23 trap records 4480 | -8/Storage | Learned location of Armory (-4) 4605 | -8/Storage | Met a pair of Derelict thieves 4905 | -8/Storage | Build established: Skirmisher 4927 | -8/Storage | Identified exit to Factory 5144 | -8/Storage | Core integrity fell below 50% 5473 | -8/Storage | Used back door to open Recycling access 5473 | -8/Storage | Discovered new exit (range 5) 5661 | -8/Storage | Entered Recycling 6486 | -8/Recycling | Discovered new exit (range 8) 6681 | -8/Recycling | Scanned before Scraplab entrance 6715 | -8/Recycling | Entered Scraplab 6735 | -8/Recycling | Discovered new exit (range 2) 6737 | -8/Recycling | Entered Scraptown 6737 | -8/Scraptown | System corruption cleaned by C-Scrubber 7042 | -8/Scraptown | Build established: Tank 7207 | -8/Scraptown | Discovered new exit (range 13) 7352 | -8/Scraptown | Visited Red Mages 7448 | -8/Scraptown | Visited Spacefarers 7534 | -8/Scraptown | Visited Cyclists 7598 | -8/Scraptown | Visited Fellowship of the Rings 7684 | -8/Scraptown | Visited Shadow of the Wyrm 7713 | -8/Scraptown | Visited Symbiants 7763 | -8/Scraptown | Visited Bundlers 7960 | -8/Scraptown | Turned away by UFD registrar 8874 | -8/Scraptown | Entered Factory 8874 | -6/Factory | Evolved 4 slots: Propulsion x1, Utility x2, Weapon x1 8928 | -6/Factory | Build established: Mutant 9186 | -6/Factory | Identified exit to DSF 9186 | -6/Factory | Entered DSF 9254 | -6/DSF | Additional patrols routed to DSF 9441 | -6/DSF | Sterilization system engaged 9442 | -6/DSF | Discovered new exit (range 14) 9461 | -6/DSF | Ambient heat levels rising (+10) 9476 | -6/DSF | Ambient heat levels rising (+10) 9491 | -6/DSF | Ambient heat levels rising (+10) 9506 | -6/DSF | Ambient heat levels rising (+10) 9521 | -6/DSF | Ambient heat levels rising (+10) 9536 | -6/DSF | Ambient heat levels rising (+10) 9537 | -6/DSF | Entered Factory 9537 | -5/Factory | Evolved 2 slots: Utility x2 10363 | -5/Factory | Discovered new exit (range 15) 10373 | -5/Factory | Build established: Scavenger-Gunner 10908 | -5/Factory | Build established: Scavenger-Skirmisher 11212 | -5/Factory | Build established: Scavenger-Gunner 11807 | -5/Factory | Crushed by falling debris 11916 | -5/Factory | Discovered new exit (range 5) 12094 | -5/Factory | Identified exit to Factory 12119 | -5/Factory | Build established: Scavenger-Tank 12159 | -5/Factory | Identified exit to Upper Caves 12844 | -5/Factory | Entered Upper Caves 12911 | -5/Upper Caves | Attracted the attention of an 0b10 outpost 12958 | -5/Upper Caves | Lost 3 parts (2n1u) 12994 | -5/Upper Caves | Met a Warlord Commander 12995 | -5/Upper Caves | Learned location of Warlord (-4) 12996 | -5/Upper Caves | Warlord Commander delivered Encrypted Comm Array 12999 | -5/Upper Caves | Found Encrypted Comm Array 13342 | -5/Upper Caves | Encountered a Warlord checkpoint 14237 | -5/Upper Caves | Learned Factory emergency access door positions 14613 | -5/Upper Caves | Discovered new exit (range 16) 15174 | -5/Upper Caves | Entered another Upper Caves area 15174 | -5/Upper Caves | Accompanied by 1 ally 15211 | -5/Upper Caves | Discovered exit to Factory (range 14) 15307 | -5/Upper Caves | Learned Factory terminal intel 15423 | -5/Upper Caves | Attracted the attention of an 0b10 checkpoint 15688 | -5/Upper Caves | Learned Factory terminal intel 16100 | -5/Upper Caves | Learned 12 Factory zone layouts 16512 | -5/Upper Caves | Spotted B-75 Beast 16541 | -5/Upper Caves | Destroyed B-75 Beast 16737 | -5/Upper Caves | Discovered new exit (range 15) 16823 | -5/Upper Caves | Entered Zhirov 16825 | -5/Zhirov | Discovered new exit (range 3) 16855 | -5/Zhirov | Met Zhirov 16886 | -5/Zhirov | Learned location of Testing (-3) 16902 | -5/Zhirov | Zhirov requested help retrieving the SGEMP Prototype 16927 | -5/Zhirov | Found Alien Artifact 16927 | -5/Zhirov | Identified Integrated Reactor 16927 | -5/Zhirov | Installed Integrated Reactor, increased core energy generation (+10) 16955 | -5/Zhirov | Found Alien Artifact 17121 | -5/Zhirov | Entered Proximity Caves 17123 | -4/Proximity Caves | Spotter reported a threat 17124 | -4/Proximity Caves | Spotter reported a threat 17148 | -4/Proximity Caves | Build established: Scavenger-Mutant 17228 | -4/Proximity Caves | Spotter reported a threat 17343 | -4/Proximity Caves | Lost 3 parts (1n2u) 17439 | -4/Proximity Caves | Spotter reported a threat 17494 | -4/Proximity Caves | Spotter reported a threat 17519 | -4/Proximity Caves | Spotter reported a threat 17562 | -4/Proximity Caves | Spotter reported a threat 17576 | -4/Proximity Caves | Build established: Scavenger-Gunner 17791 | -4/Proximity Caves | Spotted B-86 Titan 17810 | -4/Proximity Caves | Crushed by falling debris 17810 | -4/Proximity Caves | Core integrity fell below 50% 17810 | -4/Proximity Caves | System corruption reached 10% 17817 | -4/Proximity Caves | Destroyed B-86 Titan 17841 | -4/Proximity Caves | Lost 8 parts (3n2u3w) 18038 | -4/Proximity Caves | Discovered exit to Factory (range 14) 18044 | -4/Proximity Caves | Entered Factory 18044 | -4/Factory | Evolved 2 slots: Propulsion x2 18045 | -4/Factory | Identified exit to Research 18047 | -4/Factory | Loaded intel: 26 terminal locations 18294 | -4/Factory | Search patrols dispatched 18301 | -4/Factory | Found Imp. Powered Armor 18356 | -4/Factory | Discovered new exit (range 5) 18391 | -4/Factory | Found Prototype Device 18391 | -4/Factory | Identified Exp. ECM Suite 18464 | -4/Factory | Found Quantum Capacitor 18511 | -4/Factory | Identified Transdimensional Reconstructor 18520 | -4/Factory | Watched by a mysterious "MATRIX" hacker 18544 | -4/Factory | Search patrols dispatched 18684 | -4/Factory | Build established: Hacker-Mutant 18794 | -4/Factory | Search patrols dispatched 18966 | -4/Factory | Spotted B-86 Titan 19044 | -4/Factory | Search patrols dispatched 19294 | -4/Factory | Search patrols dispatched 19617 | -4/Factory | Discovered new exit (range 8) 19619 | -4/Factory | Entered Armory 19700 | -4/Armory | Lost 4 allies 19760 | -4/Armory | Lost 4 allies 20242 | -4/Armory | Build established: Mutant 20481 | -4/Armory | Discovered exit to Research (range 3) 20539 | -4/Armory | Lost 3 allies 20547 | -4/Armory | Warped through subspace to slip node 20547 | -4/Armory | Discovered new exit (range 1) 20548 | -4/Armory | Entered Lab 20548 | -4/Lab | Discovered exit to Research (range 9) 20553 | -4/Lab | Unable to decrypt terminal 20553 | -4/Lab | Opened the door to a hidden lab 20553 | -4/Lab | Detected by scanners 20554 | -4/Lab | Gained access to the hidden lab's interior 20562 | -4/Lab | Confronted by A5 20602 | -4/Lab | Destroyed A5 20615 | -4/Lab | Found Alien Artifact 20615 | -4/Lab | Identified Integrated Mediator 20615 | -4/Lab | Installed Integrated Mediator, increased core attachment efficiency 20618 | -4/Lab | Found Alien Artifact 20618 | -4/Lab | Identified Core Regenerator 20618 | -4/Lab | Used Core Regenerator, restored core integrity (+195) 20625 | -4/Lab | Found Deep Network Scanner 20627 | -4/Lab | Found Prototype Protection 20629 | -4/Lab | Found Prototype Energy Cannon 20632 | -4/Lab | Found Prototype Energy Cannon 20660 | -4/Lab | Found Prototype Special Weapon 20708 | -4/Lab | Identified Warp Cannon (x2) 20709 | -4/Lab | Found Transdimensional Reconstructor 20744 | -4/Lab | Found Prototype Hackware 20751 | -4/Lab | Identified Exp. Powered Armor 20765 | -4/Lab | Entered Research 20765 | -3/Research | Evolved 2 slots: Utility x2 21067 | -3/Research | Identified Exp. System Shield 21164 | -3/Research | Build established: Hacker-Gunner 21437 | -3/Research | Spotted B-86 Titan 21458 | -3/Research | Destroyed B-86 Titan 21503 | -3/Research | Destroyed 8 combat bots 21509 | -3/Research | Lost 3 parts (1n1u1w) 21738 | -3/Research | Identified exit to Testing 21931 | -3/Research | Build established: Hacker-Mutant 22147 | -3/Research | Intercept squad dispatched 22179 | -3/Research | Spotted Tracker 22182 | -3/Research | Spotted Tracker 22206 | -3/Research | Destroyed Tracker 22229 | -3/Research | Spotted Combat Programmer 22235 | -3/Research | Warped through subspace 22241 | -3/Research | Spotted Combat Programmer 22264 | -3/Research | Lost 10 parts (1p3n3u3w) 22331 | -3/Research | Core integrity fell below 50% 22349 | -3/Research | System corruption reached 10% 22364 | -3/Research | Lost 3 parts (3u) 22409 | -3/Research | Cargo convoy interrupted 22585 | -3/Research | Found Prototype Device 22585 | -3/Research | Identified Exp. Shock Absorption System 22589 | -3/Research | Found Prototype Device 22589 | -3/Research | Identified Adv. EM Shield 22630 | -3/Research | Core integrity fell below 20% 22672 | -3/Research | Intercept squad dispatched 22675 | -3/Research | Spotted Tracker 22691 | -3/Research | Spotted Combat Programmer 22704 | -3/Research | Destroyed by Tracker with Linked Autogun Last Messages --------------- 22683_ Acquired Imp. Linear Gravjet. 22683_ Imp. Linear Gravjet temporarily disabled. 22684_ WR RIG AS#TAZ>ZJBP218B 22700_ Penetrated by EMDS Slug. 22700_ Particle Reactor destroyed. 22700_ Imp. Linear Gravjet temporarily disabled. 22702_ J>48J4JW =SE:SUO&R,RSPK,9X>RZM 22703_ U-05 Engineer lays Concrete. 22703_ Penetrated by EMDS Slug. 22703_ Vibroblade follow-up attack on Combat Programmer. 22704_ U-05 Engineer lays Concrete. Map ----- +----------------------------------------------------+ | # %!!## # " " # #??????? | | = # !!!## # # ##?????? | | ====# !! ##! # = += "#?????? | | == ########## + # ##?????? | | #????????# # # ] #??????? | | #????????# # ##""Y""# # #??????? | | #####????????#=== # ##"""""## ## #??????? | | #?????????#=== # ######### ## #??????? | | ##????????#== # #???????# ## #??????? | | +????????####Y# #???????# ###########??????? | | ##????????######+########?# #????????????????? | | #?????????# """"" ###+#######???????????? | | #?????????# ""T"" " !!! #???????????? | | ###+###???# # !!! #???????????? | | ???# / # !!! #???????????? | | ???# # #???????????? | | ???# ###########???????????? | | ####"#############?????????????????????? | | +##### # ! #?????????????????????????????? | | # # #?????????????????????????????? | | # # ! #?????????????????????????????? | | + + #?????????????????????????????? | | # # ######????????????????????????? | | # # # #?????????????? ????????? | | # # # ####### "" """????????? | | """ # # # s @pu!=+ "" """????????? | | """ =# # # ####### "" """????????? | | """ # ########## #?????????????? ????????? | | "##### #???????## #????????????????????????? | | # ########## #????????????????????????? | | # h h ???????p???????????????? | | # ?????????????????????? | | # ???????????!???????? | | # ?????????????????? | | ##+### "################ ##????????????????? | | # ""G"" #?? #?????????????????? | | # "" "" #??? #?????????????????? | | # #??? #?????????????????? | | # #???? #?????????????????? | | ###### # #??? #?????????????????? | | ?????# # #?? #?????????????????? | | ?????# ###+############# #?????????????????? | | ?????# #?????????????????? | | ?????# #?????????????????? | | ?????# #?????????????????? | | ?????# #?????????????????? | | ?????######### ! !== #?????????????????? | | ?????????????# !== #?????????????????? | | ????????????## !== #?????????????????? | | ????????????# #?????????????????? | +----------------------------------------------------+ Best States ------------- Heat Dissipation 98 Coolant Potential 100 Energy Generation 43 Energy Capacity 340 Matter Stores 300 Matter Capacity 800 Sight Range 22 Terrain Scan Range 16 Terrain Scan Density 210 ECM Strength 2 Power Amplification 40 Additional Mass Support 9 Armor Coverage 800 Resistance: KI 20 Resistance: EM 50 Core Shielding 40 Melee Speed Boost 30 Phase Shifting 15 Evasion (%) 85 Targeting Accuracy 12 Target Analysis 12 Core Analysis 9 Armor Integrity Analysis 40 Recoil Reduction 4 Particle Charging 30 Offensive Hacking 25 Defensive Hacking 16 Item Schematics ----------------- Adv. Target Analyzer | -5/Factory | Hacked Assault Drone Bay | -5/Zhirov | Free Exp. Heat Sink | -5/Zhirov | Free Exp. Optical Array | -5/Zhirov | Free Imp. Arc Thrower | -5/Zhirov | Free Exp. Cesium-ion Thruster | -4/Factory | Hacked Robot Schematics ------------------ None Fabricated ------------ Nothing Repaired ---------- Seismic Detector | 5% | -10/Materials Lgt. Treads | 5% | -10/Materials Studied --------- Spread Laser | -8/Materials | Hacked Lgt. Treads | -8/Materials | Hacked Field Laser | -8/Materials | Hacked Thermic Laser | -5/Factory | Hacked Nuclear Pulse Array | -4/Factory | Hacked Matter Neutralizer | -4/Factory | Hacked Alien Tech Used ----------------- Integrated Reactor Transdimensional Reconstructor Integrated Mediator Core Regenerator Achievements -------------- Suspicious By Nature Thread The Needle Around The Corner Challenges ------------ None Game ------ Seed ActiveDroneDistortion Manual? 0 Play Time 04:59:08 Cumulative 351.6 hours Start 2026.07.25 @ 11:24:46 End 2026.07.25 @ 17:29:01 Sessions 3 Manual Loads 0 Difficulty Rogue Special Mode None Game No. 203 Rogue 129 Adventurer 74 Explorer 0 Win Type - Total 17 Types 14/0/0/3/0/0/0/0/0/0 Lore% 74 Gallery% 68 Achievement% 52 Wizard Run 0 Options --------- Layout 2 ASCII 0 Keyboard 0 Movement Mouse Keybinds 0 Fullscreen 1 Font 32/SmallcapsGlow Map View 50x44 Zoom Use 0% Tactical HUD 1 Map Filters NONE Filters NONE Steam 1 RUN: 7a9db81f-55be-4f83-a198-c1dd732c060e